Cogmind - Beta 14 @@@ ROGUE MODE // 2024.09.05 @ 22:42:19 Player: Wyvric Result: Destroyed by Executioner with Helical Railgun Performance ------------- Evolutions (5) 2500 Regions Visited (21) 4200 Robots Destroyed (575) 2875 Value Destroyed (23790) 23790 Prototype IDs (71) 1420 Alien Tech Used (0) 0 Bonus (26583) 26583 TOTAL SCORE: 61368 Bonus ------- Triggered High Security 500 High Alert Combat Kills 3578 Follower Combat Kills 67 Aligned with FarCom 300 Met Data Miner 300 Met Imprinter 300 Met Warlord at Base 500 MAIN.C Attacked Warlord 500 Warlord Defense Kills 21902 Friendly Fire -1364 Cogmind --------- Core Integrity 0/1000 Matter 160/300 Energy 550/550 System Corruption 18% Temperature Cool (34) Movement Treading (247) Ox1 Location -5/Warlord Parts ------- > --- POWER (2) -------- Antimatter Reactor Antimatter Reactor > --- PROPULSION (4) --- Medium Treads Armored Medium Treads Armored Medium Treads Armored Medium Treads > --- UTILITY (9) ------ Huge Storage Unit Advanced Visual Processing Unit Launcher Loader Improved Utility Shielding Centrium Light Armor Plating > --- WEAPON (2) ------- Scatter Rocket Array > --- INVENTORY (25) --- Improved Cooling System YI-UF0's Bottomless Matter Pit (492) Vortex Rail (39) Firepult Smartbomb Launcher Vortex Lance (40) Vortex Lance (40) Peak State ------------ > --- POWER ------------ Neutrino Core Reinforced Fission Core > --- PROPULSION ------- Improved Medium Treads Heavy Treads Enhanced Biometal Leg > --- UTILITY ---------- Experimental Cooling System Humpback Active Sensor Suite Layered Medium Armor Plating Improved Focal Shield Improved Component Analysis Suite > --- WEAPON ----------- Vortex Lance Vortex Lance > --- INVENTORY -------- Vortex Chain Reactor Armored Medium Treads Armored Medium Treads Armored Medium Treads Enhanced Biometal Leg Improved Diametric Drive Improved Cooling System Improved Coolant Injector Huge Storage Unit YI-UF0's Bottomless Matter Pit Launcher Loader Launcher Loader Makeshift Transmission Jammer Improved Utility Shielding Improved Heavy Armor Plating Layered Heavy Armor Plating Graphene Brace Advanced Remote Shield Vortex Rail Vortex Rail Cooled Plasma Cannon Firepult Enhanced Gauss Cannon Long-range Missile Launcher Scatter Rocket Array Scatter Rocket Array Smartbomb Launcher [Rating: 132] Favorites ----------- Power Fission Core Engine Improved Ion Engine Power Core Fission Core Reactor Vortex Chain Reactor Propulsion Light Treads Treads Light Treads Leg Improved Titanium Leg Wheel Armored Huge Wheel Utility Huge Storage Unit Device Improved Terrain Scanner Storage Huge Storage Unit Processor Core Analyzer Hackware Makeshift System Shield Protection Hardened Heavy Armor Plating Weapon Heavy Plasma Cannon Energy Gun Backup Laser III Energy Cannon Heavy Plasma Cannon Ballistic Gun Light Assault Rifle Ballistic Cannon Assault Cannon Launcher Heavy Rocket Launcher Special Weapon RU-N14's Throwing Claymores Impact Weapon Maul Slashing Weapon Chainsword Piercing Weapon Vortex Lance Special Melee Weapon Improved Datajack Build | -11 -10 -10 -9 -9 -9 -8 -8 -7 -7 -7 -7 -6 -6 -6 -6 -6 -5 -5 -5 -5 -5 ------- Run | Yrd Mat Min Mat Min Exi Min Mat Fac Low Low Dat Pro Fac Low Low Zio Pro Fac Upp Upp War Slots Evolved 10 | . . . 2 . . . 2 2 . . . . 2 . . . . 2 . . . Power 1 | . . . . . . . . . . . . . . . . . . 1 . . . Propulsion 2 | . . . 1 . . . 1 . . . . . . . . . . . . . . Utility 7 | . . . 1 . . . 1 2 . . . . 2 . . . . 1 . . . Weapon . | . . . . . . . . . . . . . . . . . . . . . . Parts Attached 835 | 6 16 6 44 3 3 . 62 187 36 59 1 37 57 39 10 28 25 119 4 21 72 Power 37 | 1 2 1 5 1 . . 1 5 2 2 . 2 2 2 3 . . 4 . . 4 Engine 23 | 1 2 . 3 1 . . 1 3 1 2 . 2 2 2 1 . . 2 . . . Core 11 | . . 1 2 . . . . 2 1 . . . . . 2 . . 2 . . 1 Reactor 3 | . . . . . . . . . . . . . . . . . . . . . 3 Propulsion 159 | 2 6 . 15 . 1 . 7 13 6 4 . 10 27 2 1 5 . 43 . 2 15 Treads 106 | . 2 . 15 . 1 . 7 11 4 3 . 9 14 . . 5 . 19 . 2 14 Leg 16 | 2 2 . . . . . . . 2 . . . 4 2 1 . . 2 . . 1 Wheel 37 | . 2 . . . . . . 2 . 1 . 1 9 . . . . 22 . . . Hover . | . . . . . . . . . . . . . . . . . . . . . . Flight . | . . . . . . . . . . . . . . . . . . . . . . Utility 364 | 1 5 3 10 2 . . 30 96 12 28 . 12 14 26 2 9 16 47 4 11 36 Device 248 | . 1 2 3 1 . . 14 68 7 21 . 12 11 22 2 6 11 34 3 7 23 Storage 15 | 1 4 1 1 1 . . . 1 . . . . . 1 . . . 3 . 1 1 Processor 9 | . . . . . . . 1 . 2 . . . . 3 . 1 . 1 . . 1 Hackware 8 | . . . . . . . . 3 . . . . 1 . . . . 4 . . . Protection 84 | . . . 6 . . . 15 24 3 7 . . 2 . . 2 5 5 1 3 11 Artifact . | . . . . . . . . . . . . . . . . . . . . . . Weapon 275 | 2 3 2 14 . 2 . 24 73 16 25 1 13 14 9 4 14 9 25 . 8 17 Energy Gun 14 | 1 . . . . . . 3 . 1 . . . 1 . . 1 . 4 . . 3 Energy Cannon 54 | . 2 1 1 . . . 3 . 2 7 . 5 4 2 2 2 5 12 . 2 4 Ballistic Gun 6 | 1 1 . . . . . . . . 1 . . 2 . 1 . . . . . . Ballistic Cannon 90 | . . . 8 . 1 . 10 38 6 9 . 4 4 4 . . . 3 . 2 1 Launcher 83 | . . 1 4 . . . 8 34 7 6 1 2 2 2 1 3 . 2 . 4 6 Special Weapon 10 | . . . 1 . . . . . . . . . . . . 1 4 4 . . . Impact Weapon 1 | . . . . . . . . . . 1 . . . . . . . . . . . Slashing Weapon 12 | . . . . . . . . 1 . 1 . 2 1 1 . 6 . . . . . Piercing Weapon 4 | . . . . . . . . . . . . . . . . 1 . . . . 3 Special Melee Weapon 1 | . . . . . 1 . . . . . . . . . . . . . . . . Unidentified Prototypes 12 | . . 2 . . . . . 1 . . . . 1 . . 1 . . 1 . 6 Corrupted Parts 13 | . . . . . . . . . . 2 . 8 . . . 2 . . . . 1 System Corruption 69 | . . . . . . . . . . 11 . 43 . . . 11 . . . . 4 Parts Lost 75 | . . . 2 . . . 1 10 4 5 . 10 14 5 2 . . 3 . . 19 Power 9 | . . . 1 . . . . 2 . . . 1 2 . 1 . . . . . 2 Propulsion 22 | . . . . . . . 1 2 2 2 . 3 4 . 1 . . 2 . . 5 Utility 32 | . . . 1 . . . . 3 2 2 . 4 7 2 . . . 1 . . 10 Weapon 12 | . . . . . . . . 3 . 1 . 2 1 3 . . . . . . 2 Highest Loss Streak 12 | . . . 1 . . . 1 5 2 3 . 4 5 5 2 . . 1 . . 12 To Critical Strikes 5 | . . . . . . . . . . 2 . 1 . . . . . . . . 2 Average Slot Usage (%) 89 | . 95 99 99 100 100 100 96 86 78 89 100 85 92 94 92 92 92 92 76 70 70 Engine 4 | . 14 10 1 11 11 11 9 6 5 7 7 6 5 6 1 . . 4 . . . Core 3 | . . 3 9 . . . . . 1 . . . . . 4 6 6 5 11 11 7 Treads 19 | . 7 28 33 33 33 33 35 24 2 17 23 13 9 . . 25 26 5 17 17 16 Leg 4 | . 20 . . . . . . . 9 . . . 9 26 25 . . 2 . . . Wheel 2 | . . . . . . . . 2 7 6 7 7 5 . . . . 13 . . . Device 14 | . 10 13 12 11 11 11 8 14 11 17 23 20 27 20 13 11 14 10 19 17 22 Storage 7 | . 14 14 11 11 11 11 9 7 7 7 7 7 6 6 6 6 6 5 5 5 5 Processor 7 | . . . . . . . 3 . 7 7 7 7 6 19 26 26 24 11 8 . . Hackware 1 | . . . . . . . . 1 . . . . 2 . . . . 15 . . . Protection 5 | . . . 9 11 11 11 12 12 7 8 7 2 3 . . 1 . 1 . 4 5 Energy Cannon 5 | . 10 27 2 . . . . . 6 8 . . 3 10 13 5 11 8 5 4 1 Ballistic Cannon 7 | . . . 17 22 17 22 14 14 8 5 . 7 3 1 . . . 1 5 4 . Peak Build Rating 132 | 6 10 20 25 24 24 24 46 59 57 60 51 57 69 72 73 78 78 102 115 116 132 Average Rating 60 | 4 8 11 21 22 23 24 31 52 51 53 50 51 59 70 72 74 75 77 112 114 115 On Entrance 50 | . 6 10 13 24 23 24 24 36 55 53 50 51 57 63 71 73 75 75 102 113 104 Naked Turns . | . . . . . . . . . . . . . . . . . . . . . . Heaviest Build 313 | 11 34 41 63 103 103 103 118 155 128 140 120 120 118 313 237 235 241 263 264 279 277 Greatest Support 140 | 20 40 40 69 66 66 66 92 96 28 40 12 58 113 77 75 116 108 128 128 130 140 Greatest Overweight (x) 12 | . 1 1 1 1 1 1 1 5 8 10 9 9 10 4 3 3 2 12 2 2 2 Average Overweight (x) 2 | . . . . . 1 1 1 2 4 5 9 4 1 2 2 1 2 7 2 1 1 Largest Inventory Capacity 35 | 8 20 15 20 25 25 25 25 25 25 25 25 25 25 35 35 35 35 35 35 35 35 Average Capacity 28 | 6 13 15 19 24 25 25 25 25 25 25 25 25 25 32 35 35 35 34 35 35 32 Most Carried 35 | 7 16 15 20 25 25 25 25 25 25 25 25 25 25 35 35 35 35 35 35 35 35 Average Carried 27 | 4 12 14 19 23 24 25 24 24 23 24 25 23 24 31 34 34 34 34 34 34 31 Final Capacity 35 | 8 15 15 20 25 25 25 25 25 25 25 25 25 25 35 35 35 35 35 35 35 25 Final Carried 35 | 7 15 15 20 25 25 25 25 17 24 25 25 25 25 35 35 35 33 35 35 35 9 Class Distribution -------------------- 37% | Mutant 29% | Hauler-Skirmisher 11% | Scavenger-Mutant 5% | Hauler-Assassin 4% | Skirmisher 3% | Hauler-Mutant 3% | Scavenger-Skirmisher Dominant Class ---------------- Mutant | -10/Materials Mutant | -10/Mines Scavenger-Mutant | -9/Materials Mutant | -9/Mines Mutant | -9/Exiles Mutant | -8/Mines Mutant | -8/Materials Mutant | -7/Factory Mutant | -7/Lower Caves Scavenger-Mutant | -7/Lower Caves Scavenger-Mutant | -7/Data Miner Scavenger-Assassin | -6/Proximity Caves Scavenger-Mutant | -6/Factory Hauler-Skirmisher | -6/Lower Caves Hauler-Skirmisher | -6/Lower Caves Hauler-Assassin | -6/Zion Hauler-Skirmisher | -5/Proximity Caves Derelict-Skirmisher | -5/Factory Hauler-Skirmisher | -5/Upper Caves Hauler-Skirmisher | -5/Upper Caves Hauler-Skirmisher | -5/Warlord Resources | -11 -10 -10 -9 -9 -9 -8 -8 -7 -7 -7 -7 -6 -6 -6 -6 -6 -5 -5 -5 -5 -5 ----------- Run | Yrd Mat Min Mat Min Exi Min Mat Fac Low Low Dat Pro Fac Low Low Zio Pro Fac Upp Upp War Matter Collected 25292 | 257 449 469 2709 1021 . 140 1945 5397 1456 1575 . 738 754 1665 659 331 352 1117 668 565 3025 Remotely 2625 | . . . . . . . . 1661 . . . 240 383 341 . . . . . . . Salvage Created 21763 | 13 663 312 2218 511 . 250 975 3138 717 799 . 407 500 567 177 . 331 1656 301 248 7980 Parts 867 | 3 51 18 165 24 . 8 59 158 36 25 . 16 22 13 13 . 14 96 3 7 136 Haulers Intercepted 11 | . 2 . 6 . . . 2 1 . . . . . . . . . . . . . Recyclers Shooed 20 | . 1 . 2 3 . 1 2 7 . . . . . . . . . 4 . . . Parts Field Recycled 70 | . . . . . . . . 70 . . . . . . . . . . . . . Retrieved Matter 539 | . . . . . . . . 539 . . . . . . . . . . . . . Parts Self-Destructed 97 | . . . . . . . . . 26 8 . 16 . 11 12 6 10 . 3 5 . Prevented 18 | . . . . . . . . . . 11 . 3 . 1 . . . . 1 2 . Kills | -11 -10 -10 -9 -9 -9 -8 -8 -7 -7 -7 -7 -6 -6 -6 -6 -6 -5 -5 -5 -5 -5 ------- Run | Yrd Mat Min Mat Min Exi Min Mat Fac Low Low Dat Pro Fac Low Low Zio Pro Fac Upp Upp War Combat Hostiles Destroyed 511 | . 16 7 52 9 . 3 30 96 22 17 . 10 14 9 6 . 10 23 3 7 177 Guns 22 | . 12 . . . . . 2 . . . . . 4 . . . . 2 . . 2 Cannons 180 | . 4 6 36 9 . 3 18 41 5 7 . 4 8 6 2 . . 13 3 2 13 AOE 228 | . . . 16 . . . 9 55 17 8 . 5 1 2 4 . 9 4 . 5 93 Classes Destroyed 27 | 1 6 1 4 . . . 2 3 1 2 . 1 . . . . 1 . . . 5 Worker 25 | . . . 10 1 . . 3 9 . . . . 1 . . . . 1 . . . Builder 32 | . . 1 12 . . . 4 7 . . . . . . . . . 8 . . . Tunneler 4 | 1 . . . . . . 1 1 . . . . 1 . . . . . . . . Hauler 11 | . 2 . 6 . . . 2 1 . . . . . . . . . . . . . Recycler 24 | . 1 . 5 4 . 2 1 10 . . . . . . . . . 1 . . . Minesweeper 1 | . . . . . . . . . . . . 1 . . . . . . . . . Mechanic 6 | . . . . . . . . 5 . . . . . . . . . 1 . . . Operator 3 | . 1 . 2 . . . . . . . . . . . . . . . . . . Drone 2 | . . . . . . . . . . . . . . . . . 2 . . . . Watcher 10 | . 2 . 2 . . . 4 . . . . . . . . . . 2 . . . Swarmer 78 | . 9 5 3 3 . . 9 . 9 5 . 4 7 5 4 . . . . . 15 Saboteur 6 | . . . . . . . . . . . . . . . . . . . . . 6 Grunt 225 | . 7 2 34 3 . 3 12 55 11 8 . 5 1 3 . . 7 9 1 2 62 Brawler 32 | . . . 3 1 . . . 9 . . . . . . . . 1 . . 2 16 Duelist 17 | . . . . . . . . 6 . . . . 2 . . . . . . 1 8 Protector 22 | . . . 2 . . . . 4 . . . . . . . . . . . . 16 Sentry 38 | . . . 10 2 . . 7 6 2 2 . . 3 1 . . . 4 . 1 . Demolisher 2 | . . . . . . . . . . . . . . . . . . . . . 2 Specialist 3 | . . . . . . . . . . . . . . . . . . . . . 3 Hunter 21 | . . . . . . . 1 3 . . . . . . 2 . . . 1 1 13 Programmer 39 | . . . . . . . . 13 . . . 1 1 . . . . 9 1 . 14 Heavy 2 | . . . . . . . 1 . . . . . . . . . . 1 . . . Behemoth 7 | . . . . . . . . . . 1 . . . . . . . . . . 6 Striker 9 | . . . . . . . . . . . . . . . . . . . . . 9 Executioner 11 | . . . . . . . . . . . . . . . . . . . . . 11 Decomposer 6 | . . . . . . . . . . . . 2 . . 1 . . . 1 2 . Packrat 5 | . . . . . . . . . . 3 . . . 2 . . . . . . . Samaritan 9 | . . . . . . . . . 5 . . . . 1 . . . . 3 . . Mutant 1 | . . . . . . . . . . 1 . . . . . . . . . . . Best Kill Streak 34 | 1 3 3 12 3 . 3 8 14 6 5 . 4 3 2 6 . 4 6 1 3 34 Combat Bots Only 34 | . 3 3 9 2 . 3 4 13 6 5 . 4 3 2 6 . 4 6 1 3 34 Max Kills in Single Turn 9 | 1 1 1 6 1 . 1 5 5 4 3 . 2 1 1 2 . 4 3 1 2 9 Gunslinging . | . . . . . . . . . . . . . . . . . . . . . . Exploded 9 | . . . 4 . . . 2 5 4 3 . 2 1 1 2 . 4 3 . 2 9 Melee . | . . . . . . . . . . . . . . . . . . . . . . Uniques/NPCs Destroyed 1 | . . 1 . . . . . . . . . . . . . . . . . . . YI-UF0 (-10/Mines) Combat | -11 -10 -10 -9 -9 -9 -8 -8 -7 -7 -7 -7 -6 -6 -6 -6 -6 -5 -5 -5 -5 -5 -------- Run | Yrd Mat Min Mat Min Exi Min Mat Fac Low Low Dat Pro Fac Low Low Zio Pro Fac Upp Upp War Hostile Shots Fired 2372 | . 54 32 112 34 . 2 148 564 127 179 . 110 248 68 29 . 2 132 12 7 512 Missed 696 | . 19 7 30 11 . . 47 162 56 53 . 40 76 24 10 . 1 36 3 3 118 Damage Taken 25955 | . 306 251 999 250 . 39 1476 5225 880 1485 . 1068 2865 801 322 . 38 1792 159 120 7879 Core 2598 | . 71 65 110 11 . . 145 196 . 143 . 148 557 79 58 . . 164 18 . 833 Absorbed by Shields 2939 | . . . . . . . . 468 174 404 . 33 . 82 . . . 183 . . 1595 Reduced by Siege Mode 368 | . . . . . . . . . . . . . . . . . . . 11 . 357 Redirected to Shielding 165 | . . . . . . . 9 . . . . . . . . . . 68 . . 88 Ignored by Resistances 1090 | . . . . . . . . . . 87 . . 249 3 . . . 202 . . 549 Regen/Repaired (Parts) 984 | . . . . . . . 165 . . . . . . . . . . 742 . . 77 Core Remaining (%) 55 | 100 . 45 . . . 69 73 . . . . 30 . . . . 18 . . . . Volleys Fired 1272 | 1 53 25 166 30 . 11 103 270 41 59 . 28 63 31 18 . 36 144 23 27 143 Largest 2 | 2 2 2 2 2 . 2 2 2 2 2 . 2 2 2 2 . 2 2 2 2 1 Hottest 250 | 70 136 136 136 88 . 88 250 109 138 138 . 138 138 180 180 . 180 180 92 92 250 Shots Fired 2099 | 2 106 51 302 60 . 22 175 476 81 105 . 39 98 55 30 . 54 222 40 39 142 Gun 176 | 2 94 . . . . . 16 . . . . . 29 6 . . . 23 . . 6 Cannon 1705 | . 12 51 280 60 . 22 144 416 65 88 . 29 68 45 27 . 51 192 40 27 88 Launcher 210 | . . . 21 . . . 15 60 16 17 . 10 1 4 3 . 1 2 . 12 48 Special 8 | . . . 1 . . . . . . . . . . . . . 2 5 . . . Kinetic 1200 | 1 88 . 254 60 . 22 138 416 35 52 . 24 52 17 . . . 16 17 5 3 Thermal 539 | 1 18 51 27 . . . 22 . . . . . 16 21 27 . 51 175 23 22 85 Explosive 209 | . . . 21 . . . 15 60 16 17 . 3 1 4 3 . 3 6 . 12 48 Electromagnetic 144 | . . . . . . . . . 30 36 . 12 29 13 . . . 24 . . . Entropic 6 | . . . . . . . . . . . . . . . . . . . . . 6 Robot Hit Streak 22 | 1 10 14 11 11 . 12 11 12 11 15 . 8 13 10 8 . 4 14 14 9 22 Robot Miss Streak 12 | . 3 2 3 7 . 2 3 8 3 3 . 3 5 3 3 . 1 6 3 1 12 Penetration Max 1 | . . . . . . . . . . . . . . . . . . . . . 1 Secondary Targets . | . . . . . . . . . . . . . . . . . . . . . . Shots Hit Robots 1088 | 1 67 33 155 31 4 15 100 232 36 54 . 25 57 25 11 . 5 100 23 13 101 Core Hits 1553 | 1 36 13 107 14 . 7 63 322 48 33 . 23 26 29 9 . 12 56 9 16 729 Critical Kills 5 | . . . . . . . . . . . . . . . . . 1 4 . . . Critical Parts Destroyed 1 | . . . . . . . . . . . . . . . . . . . . . 1 Critical Strikes 43 | . 1 . 4 . . . 6 16 1 1 . 1 2 . . . 1 5 4 . 1 Burn 2 | . 1 . . . . . 1 . . . . . . . . . . . . . . Meltdown 5 | . . . . . . . . . . . . . . . . . 1 4 . . . Blast 34 | . . . 4 . . . 5 16 . 1 . 1 2 . . . . 1 4 . . Corrupt 1 | . . . . . . . . . 1 . . . . . . . . . . . . Detonate 1 | . . . . . . . . . . . . . . . . . . . . . 1 Melee Attacks 17 | . . . . . 4 . . 1 . . . 8 3 . . 1 . . . . . Impact . | . . . . . . . . . . . . . . . . . . . . . . Slashing 13 | . . . . . . . . 1 . . . 8 3 . . 1 . . . . . Piercing . | . . . . . . . . . . . . . . . . . . . . . . Sneak Attacks 8 | . . . . . 4 . . . . . . 4 . . . . . . . . . Combat Hostiles . | . . . . . . . . . . . . . . . . . . . . . . Follow-up Attacks . | . . . . . . . . . . . . . . . . . . . . . . Damage Inflicted 72715 | 10 669 682 6004 887 . 363 3641 16465 2518 2491 . 1662 1662 1229 630 . 1066 3738 747 971 27280 Guns 1530 | 10 501 . . . . . 225 . . . . . 291 15 . . . 271 . . 217 Cannons 24294 | . 162 679 3635 759 . 363 1998 5879 865 1335 . 540 1169 637 324 . 127 2873 747 125 2077 Explosions 45814 | . . . 2147 . . . 1401 10370 1653 1156 . 769 162 577 306 . 904 537 . 846 24986 Melee 380 | . . . . . . . . . . . . 353 27 . . . . . . . . Ramming 605 | . 6 3 222 128 . . 17 216 . . . . 13 . . . . . . . . Kinetic 15999 | 10 451 . 3372 759 . 363 1968 5879 364 618 . 401 818 240 . . . 342 289 . 125 Thermal 17300 | . 212 679 263 . . . 342 157 . 64 . 119 166 288 324 . 127 2531 458 125 11445 Explosive 35637 | . . . 2147 . . . 1314 10213 1653 1092 . 393 162 577 306 . 904 537 . 846 15493 Electromagnetic 2485 | . . . . . . . . . 501 717 . 396 476 124 . . . 271 . . . Impact . | . . . . . . . . . . . . . . . . . . . . . . Slashing 472 | . . . . . . . . . . . . 353 27 . . . 35 57 . . . Piercing . | . . . . . . . . . . . . . . . . . . . . . . Entropic 217 | . . . . . . . . . . . . . . . . . . . . . 217 Highest Corruption 55 | . 1 1 . . . . . 5 5 12 12 55 . . . 11 . 5 5 5 18 Average Corruption 5 | . 1 1 . . . . . 3 3 8 12 17 . . . 10 . 2 5 5 10 Corruption Purged 8 | . . . . . . . . 4 4 . . . . . . . . . . . . Corruption Blocked . | . . . . . . . . . . . . . . . . . . . . . . Effects 465 | . 1 6 . . . . . 89 32 75 7 64 . . . 2 . 28 65 66 30 Message Errors 119 | . . 1 . . . . . 27 5 17 3 20 . . . . . 4 18 19 5 Matter Fused 128 | . . 1 . . . . . 19 7 29 3 15 . . . 2 . 12 21 13 6 Heat Flow Errors 50 | . 1 1 . . . . . 8 5 8 . 7 . . . . . 2 8 5 5 Energy Discharges 34 | . . 1 . . . . . 6 2 9 . 1 . . . . . . 4 6 5 Parts Rejected 2 | . . . . . . . . . . . . 1 . . . . . 1 . . . Parts Fused 6 | . . . . . . . . . . 1 . 3 . . . . . . . 2 . Data Loss (minor) 67 | . . . . . . . . 15 8 6 1 7 . . . . . 5 6 14 5 Data Loss (major) 15 | . . . . . . . . 3 . 2 . 3 . . . . . 1 3 3 . Misfires 25 | . . 1 . . . . . 7 4 2 . 1 . . . . . 2 5 2 1 Alerts 9 | . . 1 . . . . . . . . . 5 . . . . . 1 . 2 . Misdirections 1 | . . . . . . . . . . . . . . . . . . . . . 1 Weapon Failures 9 | . . . . . . . . 4 1 1 . 1 . . . . . . . . 2 Overload Shots . | . . . . . . . . . . . . . . . . . . . . . . Overflow Damage 1624 | . . 13 164 3 . 20 104 361 143 74 . 212 16 57 1 . 10 73 99 53 221 Projectiles 805 | . . 13 124 3 . 20 36 129 63 56 . 34 16 57 . . . 73 99 53 29 Explosions 641 | . . . 40 . . . 68 232 80 18 . . . . 1 . 10 . . . 192 Melee 178 | . . . . . . . . . . . . 178 . . . . . . . . . Knockbacks 109 | . . . 31 4 . 1 19 32 2 5 . 4 7 . . . . 2 . . 2 Impact 4 | . . . 2 1 . . . 1 . . . . . . . . . . . . . Kinetic 104 | . . . 28 3 . 1 19 31 2 5 . 4 7 . . . . 2 . . 2 Secondary 1 | . . . 1 . . . . . . . . . . . . . . . . . . Self-Inflicted Damage 1450 | . . . 24 . . . 79 248 25 68 . 55 15 33 . . 19 . . 35 849 Shots 58 | . . . 2 . . . 3 4 1 2 . 5 1 1 . . 1 . . 1 37 Rammed 63 | . . 1 31 10 . . 1 19 . . . . 1 . . . . . . . . Targets Rammed 77 | . 1 1 36 12 . . 2 24 . . . . 1 . . . . . . . . Kicked 1 | . 1 . . . . . . . . . . . . . . . . . . . . Crushed 13 | . . . 5 2 . . 1 5 . . . . . . . . . . . . . Highest Temperature 522 | 30 187 252 92 84 . 42 312 484 252 343 . 314 180 192 198 . 279 317 227 266 522 Average Temperature 96 | 18 38 89 20 23 . 10 92 111 78 107 . 93 40 65 63 . 81 87 107 62 124 Received Heat Transfer 5342 | . 66 75 411 66 . 18 558 1808 305 322 . 147 198 171 . . 9 381 . 27 780 Effects 31 | . . . . . . . 2 21 . 2 . . . . . . . 3 . . 3 Shutdowns 3 | . . . . . . . . 1 . . . . . . . . . . . . 2 Energy Bleed 11 | . . . . . . . 1 10 . . . . . . . . . . . . . Interference 13 | . . . . . . . . 8 . 2 . . . . . . . 3 . . . Matter Decay 2 | . . . . . . . . 1 . . . . . . . . . . . . 1 Short Circuit 1 | . . . . . . . . 1 . . . . . . . . . . . . . Damage (minor) 1 | . . . . . . . 1 . . . . . . . . . . . . . . Siege Activations 15 | . . . . . . . . . . . . . . . . . . . 1 3 11 Total Turns 189 | . . . . . . . . . . . . . . . . . . . 10 9 170 Longest Duration 36 | . . . . . . . . . . . . . . . . . . . 10 4 36 Robots Corrupted 7 | . . . . . . . . 1 1 2 . 1 1 . . . . 1 . . . Combat Hostiles 5 | . . . . . . . . . . 2 . 1 1 . . . . 1 . . . Parts Fried 33 | . . . . . . . . 2 13 4 . 1 6 2 . . . 2 . 1 2 Impact Corruptions 1 | . . . . . . . . 1 . . . . . . . . . . . . . Robots Melted 77 | . . 1 . . . . 1 . . . . . . . . . 1 4 . . 70 Combat Hostiles 75 | . . 1 . . . . 1 . . . . . . . . . 1 3 . . 69 Parts Melted 346 | . . . . . . . 11 . . . . . . 1 4 . 1 14 3 . 312 Heat Transferred 60822 | . 518 1221 444 . . . 1195 100 . 50 . 50 250 450 500 . 200 3750 700 200 51194 Parts Sabotaged 3 | . . . . . . . . . . . . . . . . . . . . . 3 Parts Stolen . | . . . . . . . . . . . . . . . . . . . . . . Parts Stripped . | . . . . . . . . . . . . . . . . . . . . . . Power Chain Reactions 2 | . . . . . . . . . . 1 . 1 . . . . . . . . . Alert | -11 -10 -10 -9 -9 -9 -8 -8 -7 -7 -7 -7 -6 -6 -6 -6 -6 -5 -5 -5 -5 -5 ------- Run | Yrd Mat Min Mat Min Exi Min Mat Fac Low Low Dat Pro Fac Low Low Zio Pro Fac Upp Upp War Peak Influence 2383 | 5 249 248 1416 737 . 76 629 2383 . . . . 174 . . . . 790 . . . Initial 538 | . 3 63 37 538 . . . 121 . . . . . . . . . 26 . . . Average 428 | . 122 134 725 517 . 5 215 639 . . . . 74 . . . . 277 . . . Maximum Alert Level 5 | . 1 1 4 3 . . 2 5 . . . . . . . . . 3 . . . Low Security (%) 39 | 100 93 84 14 . . 100 59 17 . . . . 100 . . . . 37 . . . Level 1 18 | . 6 15 13 25 . . 23 22 . . . . . . . . . 27 . . . Level 2 22 | . . . 13 65 . . 17 30 . . . . . . . . . 33 . . . Level 3 9 | . . . 40 8 . . . 11 . . . . . . . . . 2 . . . Level 4 6 | . . . 17 . . . . 10 . . . . . . . . . . . . . Level 5 1 | . . . . . . . . 3 . . . . . . . . . . . . . High Security 1 | . . . . . . . . 3 . . . . . . . . . . . . . Max Security . | . . . . . . . . . . . . . . . . . . . . . . Sterilizations 1 | . . . 1 . . . . . . . . . . . . . . . . . . Squads Dispatched 88 | . 5 . 10 . . . 6 41 . 1 . . 3 . . . . 22 . . . Investigation 13 | . 3 . 2 . . . 2 . . 1 . . . . . . . 5 . . . Extermination 18 | . . . . . . . . 13 . . . . 1 . . . . 4 . . . Reinforcement 31 | . 2 . 6 . . . 4 10 . . . . 2 . . . . 7 . . . Assault 17 | . . . 2 . . . . 15 . . . . . . . . . . . . . Garrison 9 | . . . . . . . . 3 . . . . . . . . . 6 . . . Intercept . | . . . . . . . . . . . . . . . . . . . . . . Searches Triggered . | . . . . . . . . . . . . . . . . . . . . . . Construction Impeded 13 | . . . 4 . . . 2 7 . . . . . . . . . . . . . Haulers Reinforced 1 | . . . . . . . . 1 . . . . . . . . . . . . . Active Scanning Responses . | . . . . . . . . . . . . . . . . . . . . . . Cargo Convoy Interrupts 1 | . . . . . . . . . . . . . . . . . . 1 . . . Stealth | -11 -10 -10 -9 -9 -9 -8 -8 -7 -7 -7 -7 -6 -6 -6 -6 -6 -5 -5 -5 -5 -5 --------- Run | Yrd Mat Min Mat Min Exi Min Mat Fac Low Low Dat Pro Fac Low Low Zio Pro Fac Upp Upp War Distress Signals 17 | . 1 . 7 . . . 3 3 . . . . . . . . . 1 . . 2 Communications Jammed 32 | . . . . . . . . . . . . . . . . . . 32 . . . Distress Signals 32 | . . . . . . . . . . . . . . . . . . 32 . . . Times Spotted 636 | . 29 9 76 13 . 2 43 145 22 20 . 11 27 16 6 . 7 33 2 6 169 Peak Tracking Total 18 | . 4 3 7 4 . 1 6 18 7 6 . 4 6 5 4 . 4 4 1 3 18 Tactical Retreats 25 | . 2 . 1 2 . . 3 6 . 3 . . 2 4 . . . . . . 2 Traps | -11 -10 -10 -9 -9 -9 -8 -8 -7 -7 -7 -7 -6 -6 -6 -6 -6 -5 -5 -5 -5 -5 ------- Run | Yrd Mat Min Mat Min Exi Min Mat Fac Low Low Dat Pro Fac Low Low Zio Pro Fac Upp Upp War Traps Triggered 9 | . 1 . 1 . . . 1 4 . . . 1 1 . . . . . . . . Indirectly . | . . . . . . . . . . . . . . . . . . . . . . Trap Hack Attempts . | . . . . . . . . . . . . . . . . . . . . . . Triggered . | . . . . . . . . . . . . . . . . . . . . . . Disarmed . | . . . . . . . . . . . . . . . . . . . . . . Reprogrammed . | . . . . . . . . . . . . . . . . . . . . . . Reused 2 | . . . . . . . . . . . . . 1 1 . . . . . . . Traps Extracted . | . . . . . . . . . . . . . . . . . . . . . . Installed 4 | . . . . . . . . . . . . . 3 1 . . . . . . . Triggered 40 | . . . . . . . . . . . . . 1 1 . . . 1 4 1 32 Most Traps Carried 8 | . . . . . . . . . . . . 7 8 2 1 1 . . . . . Machines | -11 -10 -10 -9 -9 -9 -8 -8 -7 -7 -7 -7 -6 -6 -6 -6 -6 -5 -5 -5 -5 -5 ---------- Run | Yrd Mat Min Mat Min Exi Min Mat Fac Low Low Dat Pro Fac Low Low Zio Pro Fac Upp Upp War Machines Disabled 56 | . 1 2 10 1 . . 1 19 3 5 . . 4 2 . . . 6 . 1 1 Max in Single Turn 6 | . 1 1 1 1 . . 1 6 1 1 . . 1 1 . . . 1 . 1 1 Garrison Access 1 | . . . . . . . . . . . . . . . . . . 1 . . . Machines Repaired . | . . . . . . . . . . . . . . . . . . . . . . Machines Dismantled . | . . . . . . . . . . . . . . . . . . . . . . Machines Sabotaged . | . . . . . . . . . . . . . . . . . . . . . . Overloaded Fab Kills . | . . . . . . . . . . . . . . . . . . . . . . Hacking | -11 -10 -10 -9 -9 -9 -8 -8 -7 -7 -7 -7 -6 -6 -6 -6 -6 -5 -5 -5 -5 -5 --------- Run | Yrd Mat Min Mat Min Exi Min Mat Fac Low Low Dat Pro Fac Low Low Zio Pro Fac Upp Upp War Machines Accessed 81 | . 7 1 10 . 2 . 11 13 2 1 4 . 5 1 . . . 18 . 1 5 Terminals 44 | . 5 1 8 . . . 8 9 1 1 . . 3 1 . . . 7 . . . Fabricators 7 | . . . . . . . . 2 . . . . 1 . . . . 4 . . . Repair Stations 6 | . . . . . . . 1 . . . . . 1 . . . . 4 . . . Recycling Units 5 | . 2 . 1 . . . . . . . . . . . . . . 2 . . . Scanalyzers 4 | . . . 1 . . . 2 1 . . . . . . . . . . . . . Garrison Access 2 | . . . . . . . . 1 . . . . . . . . . 1 . . . Total Hacks 297 | . 19 6 31 . 24 . 39 37 6 3 32 . 12 3 . . . 73 . 1 11 Successful 190 | . 9 4 16 . 24 . 24 15 6 3 32 . 5 3 . . . 37 . 1 11 Failed 106 | . 10 2 14 . . . 15 22 . . . . 7 . . . . 36 . . . Catastrophic 15 | . . . 1 . . . 1 6 . . . . 1 . . . . 6 . . . Database Lockouts 1 | . . . 1 . . . . . . . . . . . . . . . . . . Manual 138 | . 19 7 20 . 1 . 27 18 . . . . 10 . . . . 35 . . 1 Terminals 157 | . 17 6 27 . . . 30 26 5 3 . . 8 3 . . . 32 . . . Fabricators 27 | . . . . . . . . 6 . . . . 2 . . . . 19 . . . Repair Stations 21 | . . . . . . . 2 . . . . . 2 . . . . 17 . . . Recycling Units 6 | . 2 . 1 . . . . . . . . . . . . . . 3 . . . Scanalyzers 14 | . . . 3 . . . 7 4 . . . . . . . . . . . . . Garrison Access 3 | . . . . . . . . 1 . . . . . . . . . 2 . . . Terminal Hacks 108 | . . 4 5 . 24 . 10 5 6 3 32 . 1 3 . . . 3 . 1 11 Record 58 | . . . . . 23 . 1 . 6 3 11 . . 3 . . . . . 1 10 Part Schematic 15 | . . 1 . . . . . . . . 13 . 1 . . . . . . . . Robot Schematic 5 | . . . . . . . . . . . 5 . . . . . . . . . . Robot Analysis 10 | . . 3 3 . . . 3 1 . . . . . . . . . . . . . Prototype ID Bank 4 | . . . . . . . 1 . . . 3 . . . . . . . . . . Open Door 1 | . . . . . . . . . . . . . . . . . . . . . 1 Branch Access Points 2 | . . . 1 . . . . 1 . . . . . . . . . . . . . Terminal Index 1 | . . . 1 . . . . . . . . . . . . . . . . . . Fabricator Index 1 | . . . . . . . . . . . . . . . . . . 1 . . . Alert Level 1 | . . . . . . . 1 . . . . . . . . . . . . . . Unreport Threat 5 | . . . . . . . 3 2 . . . . . . . . . . . . . Locate Traps 2 | . . . . . . . . 1 . . . . . . . . . 1 . . . Recall Investigation 1 | . . . . . . . . . . . . . . . . . . 1 . . . Zone Layout 1 | . . . . . . . 1 . . . . . . . . . . . . . . Derelict Proto ID Bank 1 | . . . . . 1 . . . . . . . . . . . . . . . . Fabricator Hacks 8 | . . . . . . . . 1 . . . . . . . . . 7 . . . Load Schematic 5 | . . . . . . . . 1 . . . . . . . . . 4 . . . Build 3 | . . . . . . . . . . . . . . . . . . 3 . . . Repair Station Hacks 15 | . . . . . . . 2 . . . . . 1 . . . . 12 . . . Scan Component 9 | . . . . . . . 1 . . . . . 1 . . . . 7 . . . Repair 6 | . . . . . . . 1 . . . . . . . . . . 5 . . . Recycling Unit Hacks 1 | . . . . . . . . . . . . . . . . . . 1 . . . Retrieve Components 1 | . . . . . . . . . . . . . . . . . . 1 . . . Scanalyzer 10 | . . . 3 . . . 5 2 . . . . . . . . . . . . . Insert Component 8 | . . . 3 . . . 4 1 . . . . . . . . . . . . . Analyze 2 | . . . . . . . 1 1 . . . . . . . . . . . . . Garrison Access Hacks 1 | . . . . . . . . . . . . . . . . . . 1 . . . Seal Access 1 | . . . . . . . . . . . . . . . . . . 1 . . . Unauthorized Hacks 47 | . 9 . 8 . . . 7 7 . . . . 3 . . . . 13 . . . Terminals 41 | . 7 . 7 . . . 7 7 . . . . 3 . . . . 10 . . . Track 1 | . . . . . . . . . . . . . . . . . . 1 . . . Assimilate 4 | . 1 . . . . . 1 1 . . . . . . . . . 1 . . . Botnet 9 | . 2 . 2 . . . 1 1 . . . . 1 . . . . 2 . . . Disrupt 1 | . . . . . . . . . . . . . . . . . . 1 . . . Skim 26 | . 4 . 5 . . . 5 5 . . . . 2 . . . . 5 . . . Fabricators 3 | . . . . . . . . . . . . . . . . . . 3 . . . Prioritize 3 | . . . . . . . . . . . . . . . . . . 3 . . . Repair Stations . | . . . . . . . . . . . . . . . . . . . . . . Recycling Units 3 | . 2 . 1 . . . . . . . . . . . . . . . . . . Tunnel 3 | . 2 . 1 . . . . . . . . . . . . . . . . . . Scanalyzers . | . . . . . . . . . . . . . . . . . . . . . . Garrison Access . | . . . . . . . . . . . . . . . . . . . . . . Data Cores Recovered . | . . . . . . . . . . . . . . . . . . . . . . Used . | . . . . . . . . . . . . . . . . . . . . . . Hacking Detections 60 | . 5 1 9 . . . 9 12 1 1 . . 5 1 . . . 16 . . . Full Trace Events 10 | . 1 . 1 . . . 1 . 1 1 . . . 1 . . . 4 . . . Feedback Events . | . . . . . . . . . . . . . . . . . . . . . . Feedback Blocked 1 | . . . . . . . . . . . . . . . . . . 1 . . . Robot Schematics Acquired 8 | . . . . . . . . . . . 5 . . . . 3 . . . . . Robots Built . | . . . . . . . . . . . . . . . . . . . . . . Authchips . | . . . . . . . . . . . . . . . . . . . . . . Time . | . . . . . . . . . . . . . . . . . . . . . . Total Robot Build Rating . | . . . . . . . . . . . . . . . . . . . . . . Part Schematics Acquired 33 | . . 1 . . . . 1 1 . . 13 . 1 . . 16 . . . . . Parts Built 4 | . . . . . . . . . . . . . . . . . . 4 . . . Authchips . | . . . . . . . . . . . . . . . . . . . . . . Time 74 | . . . . . . . . . . . . . . . . . . 74 . . . Total Part Build Rating 17 | . . . . . . . . . . . . . . . . . . 17 . . . Parts Repaired 6 | . . . . . . . 1 . . . . . . . . . . 5 . . . Time 249 | . . . . . . . 44 . . . . . . . . . . 205 . . . Parts Recycled . | . . . . . . . . . . . . . . . . . . . . . . Recycled Matter . | . . . . . . . . . . . . . . . . . . . . . . Retrieved Matter . | . . . . . . . . . . . . . . . . . . . . . . Retrieved Components 2 | . . . . . . . . . . . . . . . . . . 2 . . . Parts Scanalyzed 2 | . . . . . . . 1 1 . . . . . . . . . . . . . Part Schematics Acquired 2 | . . . . . . . 1 1 . . . . . . . . . . . . . Parts Damaged . | . . . . . . . . . . . . . . . . . . . . . . Bothacking | -11 -10 -10 -9 -9 -9 -8 -8 -7 -7 -7 -7 -6 -6 -6 -6 -6 -5 -5 -5 -5 -5 ------------ Run | Yrd Mat Min Mat Min Exi Min Mat Fac Low Low Dat Pro Fac Low Low Zio Pro Fac Upp Upp War Used RIF Installer . | . . . . . . . . . . . . . . . . . . . . . . Robots Hacked 4 | . . . . . 4 . . . . . . . . . . . . . . . . Non-combat 3 | . . . . . 3 . . . . . . . . . . . . . . . . Combat 1 | . . . . . 1 . . . . . . . . . . . . . . . . Robot Hacks Applied 4 | . . . . . 4 . . . . . . . . . . . . . . . . parse_system 4 | . . . . . 4 . . . . . . . . . . . . . . . . Relay Couplers Released . | . . . . . . . . . . . . . . . . . . . . . . Fabnet Peak Effective % . | . . . . . . . . . . . . . . . . . . . . . . Robots Rewired 2 | . . . . . . . . . . . . . . . . . . . . . 2 Allies Hacked . | . . . . . . . . . . . . . . . . . . . . . . Hacks Repelled . | . . . . . . . . . . . . . . . . . . . . . . Allies | -11 -10 -10 -9 -9 -9 -8 -8 -7 -7 -7 -7 -6 -6 -6 -6 -6 -5 -5 -5 -5 -5 -------- Run | Yrd Mat Min Mat Min Exi Min Mat Fac Low Low Dat Pro Fac Low Low Zio Pro Fac Upp Upp War Total Allies 7 | . . 3 . . . . 1 1 . . . . . . . . . . . . 2 Largest Group 3 | . . 3 2 . . . 1 1 . . . . . . . . . . . . 2 Highest-Rated Group 106 | . . 40 32 . . . 10 10 . . . . . . . . . . . . 106 Highest-Rated Ally 65 | . . 16 16 . . . 10 10 . . . . . . . . . . . . 65 Total Orders 19 | . . . . . . . . 4 . . . . . . . . . 10 . . 5 STAY 7 | . . . . . . . . 2 . . . . . . . . . 2 . . 3 FOLLOW 4 | . . . . . . . . 2 . . . . . . . . . . . . 2 EXPLORE 4 | . . . . . . . . . . . . . . . . . . 4 . . . RETURN 4 | . . . . . . . . . . . . . . . . . . 4 . . . Ally Attacks 32 | . . 14 6 . . . . . . . . . . . . . . . . . 12 Total Damage 707 | . . 157 75 . . . . . . . . . . . . . . . . . 475 Kills 3 | . . 3 . . . . . . . . . . . . . . . . . . . Allies Corrupted . | . . . . . . . . . . . . . . . . . . . . . . Allies Melted 1 | . . . . . . . . . . . . . . . . . . . . . 1 Intel | -11 -10 -10 -9 -9 -9 -8 -8 -7 -7 -7 -7 -6 -6 -6 -6 -6 -5 -5 -5 -5 -5 ------- Run | Yrd Mat Min Mat Min Exi Min Mat Fac Low Low Dat Pro Fac Low Low Zio Pro Fac Upp Upp War Robot Analysis Total 9 | . . 3 3 . . . 2 1 . . . . . . . . . . . . . Derelict Logs Recovered 13 | . . 1 . 2 . . . . 3 1 . 1 . 1 1 . 2 . . 1 . Drone Launches 4 | . . . . . . . . . . . . . . . . . . 4 . . . Drone Recoveries 4 | . . . . . . . . . . . . . . . . . . 4 . . . Exploration | -11 -10 -10 -9 -9 -9 -8 -8 -7 -7 -7 -7 -6 -6 -6 -6 -6 -5 -5 -5 -5 -5 ------------- Run | Yrd Mat Min Mat Min Exi Min Mat Fac Low Low Dat Pro Fac Low Low Zio Pro Fac Upp Upp War Turns Passed 51554 | 70 1420 851 2931 1644 1751 1285 2756 8087 2401 2768 189 1408 1314 3940 2075 3634 2606 2699 2634 2636 2455 Spaces Moved 19345 | 46 757 469 1233 672 725 522 951 2747 1287 1274 84 779 556 1278 582 1313 727 972 802 787 782 Core 5 | 5 . . . . . . . . . . . . . . . . . . . . . Treads 10771 | . 196 469 1233 672 725 522 951 1363 . 57 . 2 113 . . 1298 727 72 802 787 782 Legs 2697 | 41 523 . . . . . . . 49 . . . 209 1278 582 15 . . . . . Wheels 5872 | . 38 . . . . . . 1384 1238 1217 84 777 234 . . . . 900 . . . Hover . | . . . . . . . . . . . . . . . . . . . . . . Flight . | . . . . . . . . . . . . . . . . . . . . . . Fastest Speed 50 | 50 90 160 160 160 240 240 240 160 160 145 225 125 116 197 267 240 322 150 320 240 240 Average Speed 226 | 112 159 160 160 225 240 240 240 202 169 190 225 158 170 287 336 271 322 208 320 319 249 Slowest Speed 680 | 120 240 240 240 240 240 240 240 400 680 480 225 240 325 407 337 337 322 322 320 320 320 Overloaded Moves . | . . . . . . . . . . . . . . . . . . . . . . Propulsion Burnouts . | . . . . . . . . . . . . . . . . . . . . . . Robots Hopped . | . . . . . . . . . . . . . . . . . . . . . . Cave-ins Triggered . | . . . . . . . . . . . . . . . . . . . . . . Exploration Rate (%) 76 | 5 97 97 96 98 83 100 72 58 92 93 71 92 12 87 60 86 81 36 97 84 79 Regions Visited 21 Branch Regions 15 Pre-discovered Areas 18 | . 2 1 3 1 1 . 2 1 1 1 1 . . . . 2 . 2 . . . Known Exits Taken 14 | . . . 1 . . 1 1 1 1 . . 1 1 1 1 1 1 1 1 1 . Unknown Exits Taken 7 | 1 1 1 . 1 1 . . . . 1 1 . . . . . . . . . . Scrap Searched 37 | . . 2 . 4 . 1 . . 4 2 . 1 . 10 3 3 1 . 3 3 . Spaces Dug 309 | . . . 17 . . . 11 71 5 1 . 6 25 17 9 . 61 66 3 17 . Terrain Destroyed 1711 | . . . 154 19 . 2 158 339 78 73 . 27 29 68 36 . 72 183 19 84 370 Melee 6 | . . . . . . . . 1 . . . 3 2 . . . . . . . . Projectile 493 | . . . 60 19 . 2 35 102 8 12 . 8 14 16 17 . 48 101 19 22 10 AOE 1212 | . . . 94 . . . 123 236 70 61 . 16 13 52 19 . 24 82 . 62 360 Terrain Rammed . | . . . . . . . . . . . . . . . . . . . . . . Walls Destroyed . | . . . . . . . . . . . . . . . . . . . . . . Machines Disabled . | . . . . . . . . . . . . . . . . . . . . . . Actions | -11 -10 -10 -9 -9 -9 -8 -8 -7 -7 -7 -7 -6 -6 -6 -6 -6 -5 -5 -5 -5 -5 --------- Run | Yrd Mat Min Mat Min Exi Min Mat Fac Low Low Dat Pro Fac Low Low Zio Pro Fac Upp Upp War Total 24843 | 59 884 518 1876 730 737 533 1240 4740 1423 1499 84 892 818 1489 667 1386 929 1427 851 883 1178 Wait 2369 | . 30 6 316 5 . 1 54 1351 22 47 . 20 88 90 50 . 136 62 10 21 60 Move 19324 | 45 756 468 1232 671 724 521 950 2746 1286 1273 83 778 555 1277 581 1312 726 971 801 786 782 Hop . | . . . . . . . . . . . . . . . . . . . . . . Pick Up 430 | 7 14 5 38 6 2 . 31 63 25 31 . 11 27 29 4 16 3 57 6 9 46 Fast Attach 121 | 6 5 2 5 1 . . 8 18 2 10 . 6 7 7 2 12 . 14 . 6 10 Attach 193 | . . . 5 . . . 9 32 9 8 . 11 26 9 3 3 1 23 3 3 48 Detach 45 | . 1 . . . . . 3 2 . . . 5 8 1 . 1 . 10 1 2 11 Swap 521 | . 11 4 34 2 3 . 45 137 25 41 1 20 24 23 5 13 24 82 1 12 14 Drop 444 | . 13 7 44 3 4 . 35 80 13 30 . 4 13 21 4 28 3 64 6 17 55 Fire 1272 | 1 53 25 166 30 . 11 103 270 41 59 . 28 63 31 18 . 36 144 23 27 143 Melee 17 | . . . . . 4 . . 1 . . . 8 3 . . 1 . . . . . Ram 1 | . . . . . . . . . . . . . . . . . . . . . 1 Kick 1 | . 1 . . . . . . . . . . . . . . . . . . . . Crush 76 | . . 1 36 12 . . 2 24 . . . . 1 . . . . . . . . Escape Stasis 16 | . . . . . . . . 16 . . . . . . . . . . . . . Rewire 8 | . . . . . . . . . . . . . . . . . . . . . 8 Trap 4 | . . . . . . . . . . . . . 3 1 . . . . . . . Miscellaneous 1 | . . . . . . . . . . . . 1 . . . . . . . . . Route ------- -11/Scrapyard -10/Materials (discovered 4 exits: *Mat x3 / *Min) -10/Mines (discovered 2 exits: *Mat x2) -9/Materials (discovered 6 exits: *Mat x3 / *Min x2 / *Sto) -9/Mines (discovered 3 exits: *Mat x2 / *Exi) -9/Exiles (discovered 2 exits: [*Min x2]) -8/Mines (discovered 2 exits: *Mat x2) -8/Materials (discovered 3 exits: *Fac x3) -7/Factory (discovered 3 exits: *Fac / *Low x2) -7/Lower Caves -7/Lower Caves (discovered 2 exits: *Fac / *Dat) -7/Data Miner -6/Proximity Caves -6/Factory (discovered 4 exits: Fac / *Low x2 / Ext) -6/Lower Caves -6/Lower Caves (discovered 2 exits: *Fac / *Zio) -6/Zion -5/Proximity Caves -5/Factory (discovered 6 exits: *Fac x4 / *Upp x2) -5/Upper Caves (discovered 2 exits: *Upp / *War) -5/Upper Caves (discovered 2 exits: *Fac / *War) -5/Warlord (discovered 1 exit: [*Pro]) History --------- Turn | Location | Event 14 | -11/Scrapyard | Discovered new exit (range 16) 71 | -11/Scrapyard | Entered Materials 304 | -10/Materials | Discovered new exit (range 13) 315 | -10/Materials | Build established: Mutant 617 | -10/Materials | Discovered new exit (range 16) 753 | -10/Materials | Discovered new exit (range 7) 1208 | -10/Materials | Discovered new exit (range 15) 1491 | -10/Materials | Entered Mines 1631 | -10/Mines | Assisted by bots powering up and referring to "LRC-V3" 1734 | -10/Mines | Found DCF Scrap (12 items) 1765 | -10/Mines | YI-UF0 nonchalantly dropped a Grenade Launcher on the ground 1804 | -10/Mines | Murdered YI-UF0 1810 | -10/Mines | Found Prototype Storage 1810 | -10/Mines | Identified YI-UF0's Bottomless Matter Pit 1816 | -10/Mines | Found Prototype Launcher 1817 | -10/Mines | Identified YI-UF0's Doublenader 2157 | -10/Mines | Core integrity fell below 50% 2179 | -10/Mines | Discovered new exit (range 5) 2208 | -10/Mines | Discovered new exit (range 3) 2342 | -10/Mines | Entered Materials 2342 | -9/Materials | Accompanied by 2 allies 2342 | -9/Materials | Evolved 2 slots: Propulsion x1, Utility x1 2406 | -9/Materials | Identified exit to Mines 2406 | -9/Materials | Identified exit to Storage 2416 | -9/Materials | Build established: Scavenger-Mutant 2571 | -9/Materials | Discovered new exit (range 15) 3216 | -9/Materials | Destroyed 9 combat bots 3545 | -9/Materials | Discovered new exit (range 16) 3764 | -9/Materials | Discovered new exit (range 14) 3777 | -9/Materials | Central database locked down 3942 | -9/Materials | First assault squad dispatched 4020 | -9/Materials | Identified exit to Materials 4125 | -9/Materials | Learned Storage trap positions 4792 | -9/Materials | Build established: Mutant 5041 | -9/Materials | Sterilization system engaged 5041 | -9/Materials | Non-combat units ordered to evacuate 5141 | -9/Materials | Combat units ordered to evacuate 5273 | -9/Materials | Entered Mines 5494 | -9/Mines | Discovered exit to Materials (range 13) 5575 | -9/Mines | Learned Materials stockpile data 5776 | -9/Mines | Discovered new exit (range 4) 5855 | -9/Mines | Found DCF Scrap (14 items) 5897 | -9/Mines | Deemed a non-threat by the Exiles lab entrance 6576 | -9/Mines | Learned Materials stockpile data 6586 | -9/Mines | Discovered exit to Materials (range 4) 6917 | -9/Mines | Entered Exiles 6953 | -9/Exiles | Discovered new exit (range 14) 7009 | -9/Exiles | Met 8R-AWN 7047 | -9/Exiles | Met EX-HEX 7225 | -9/Exiles | Met EX-DEC 7269 | -9/Exiles | Visited The Gauntlet 7441 | -9/Exiles | Learned location of Zion (-6) 7587 | -9/Exiles | Discovered new exit (range 12) 7786 | -9/Exiles | Met EX-BIN 7815 | -9/Exiles | Aligned with FarCom system 7817 | -9/Exiles | Given EX-Vault access code 7875 | -9/Exiles | Opened EX-Vault 7893 | -9/Exiles | Found Firepult 7949 | -9/Exiles | Warned to stay clear of 0b10 Research branches 8668 | -9/Exiles | Left Exiles lab with Firepult 8668 | -9/Exiles | Entered Mines 9249 | -8/Mines | Discovered exit to Materials (range 9) 9381 | -8/Mines | Discovered exit to Materials (range 15) 9953 | -8/Mines | Entered Materials 9953 | -8/Materials | Evolved 2 slots: Propulsion x1, Utility x1 11199 | -8/Materials | Discovered new exit (range 7) 11288 | -8/Materials | Identified exit to Factory 11333 | -8/Materials | Learned 2 Lower Caves zone layouts 11367 | -8/Materials | Learned Storage trap positions 11389 | -8/Materials | Learned 2 Lower Caves zone layouts 11401 | -8/Materials | Learned Factory terminal intel 11405 | -8/Materials | Learned location of Extension (-6) 11440 | -8/Materials | Learned 2 Storage zone layouts 11469 | -8/Materials | Learned 4 Lower Caves zone layouts 12424 | -8/Materials | Repaired Hrd. Heavy Armor Plating? 12709 | -8/Materials | Entered Factory 12709 | -7/Factory | Evolved 2 slots: Utility x2 12710 | -7/Factory | Identified exit to Factory 12711 | -7/Factory | Loaded intel: 26 terminal locations 13098 | -7/Factory | Identified exit to Lower Caves 13108 | -7/Factory | Build established: Hacker-Mutant 13712 | -7/Factory | Build established: Skirmisher 13880 | -7/Factory | P-60 Hacker assimilated allied Technician 4a 15082 | -7/Factory | Learned 2 Proximity Caves zone layouts 15200 | -7/Factory | Learned location of 1 exit from Hub_04(d) 15417 | -7/Factory | Build established: Scavenger-Skirmisher 15785 | -7/Factory | Garrison activated, responded to threat 15857 | -7/Factory | Build established: Mutant 17509 | -7/Factory | First assault squad dispatched 19608 | -7/Factory | Destroyed 9 combat bots 20482 | -7/Factory | High security lockdown imminent 20562 | -7/Factory | High security lockdown engaged 20709 | -7/Factory | Destroyed 13 combat bots 20772 | -7/Factory | Destroyed 7 combat bots 20782 | -7/Factory | Lost 5 parts (1n2u2w) 20796 | -7/Factory | Entered Lower Caves 20797 | -7/Lower Caves | Identified exit to Lower Caves 20902 | -7/Lower Caves | Learned Factory garrison access intel 21082 | -7/Lower Caves | Found DRS Beacon 21377 | -7/Lower Caves | Learned Factory interactive machine intel 21933 | -7/Lower Caves | Attracted the attention of an 0b10 base 22050 | -7/Lower Caves | Learned location of Armory (-4) 22050 | -7/Lower Caves | Learned Research stockpile data 22050 | -7/Lower Caves | Learned Extension terminal intel 22156 | -7/Lower Caves | Attracted the attention of an 0b10 checkpoint 23197 | -7/Lower Caves | Entered another Lower Caves area 23465 | -7/Lower Caves | Spotted B-75 Beast 23720 | -7/Lower Caves | Destroyed B-75 Beast 24128 | -7/Lower Caves | System corruption reached 10% 24171 | -7/Lower Caves | Attracted the attention of an 0b10 base 24252 | -7/Lower Caves | Learned Extension emergency access door positions 24551 | -7/Lower Caves | Attracted the attention of an 0b10 checkpoint 24588 | -7/Lower Caves | Build established: Scavenger-Mutant 24592 | -7/Lower Caves | Lost 3 parts (1n1u1w) 24870 | -7/Lower Caves | Encountered a Warlord checkpoint 25119 | -7/Lower Caves | Learned 4 Factory zone layouts 25179 | -7/Lower Caves | Discovered new exit (range 9) 25207 | -7/Lower Caves | Attacked by a delusional Derelict stockpiling parts 25965 | -7/Lower Caves | Entered Data Miner 25965 | -7/Data Miner | Discovered new exit (range 6) 26008 | -7/Data Miner | Met Data Miner 26060 | -7/Data Miner | Learned location of Section 7 (-2) 26060 | -7/Data Miner | Acquired the access code to Warlord's prototype stash 26098 | -7/Data Miner | Received God Mode back door access code from Data Miner 26154 | -7/Data Miner | Entered Proximity Caves 26198 | -6/Proximity Caves | Core integrity fell below 50% 26234 | -6/Proximity Caves | Lost 4 parts (1p1n2u) 26654 | -6/Proximity Caves | Lost 3 parts (1n2w) 26701 | -6/Proximity Caves | Learned 4 Factory zone layouts 26773 | -6/Proximity Caves | Lost 3 parts (1n2u) 26869 | -6/Proximity Caves | Spotted B-75 Beast 26875 | -6/Proximity Caves | Activated DRS Beacon 27267 | -6/Proximity Caves | Build established: Scavenger-Assassin 27546 | -6/Proximity Caves | System corruption reached 30% 27562 | -6/Proximity Caves | Entered Factory 27562 | -6/Factory | Evolved 2 slots: Utility x2 27563 | -6/Factory | Identified exit to Lower Caves 27564 | -6/Factory | Identified exit to Factory 27564 | -6/Factory | Identified exit to Extension 27565 | -6/Factory | Loaded intel: 54 interactive machine locations 27566 | -6/Factory | Loaded intel: 4 garrison access locations 27728 | -6/Factory | Lost 4 parts (1n2u1w) 27775 | -6/Factory | Discovered exit to Lower Caves (range 14) 27985 | -6/Factory | Build established: Scavenger-Skirmisher 28141 | -6/Factory | Lost 3 parts (2n1u) 28181 | -6/Factory | Core integrity fell below 50% 28211 | -6/Factory | Lost 5 parts (2p3u) 28480 | -6/Factory | Found Scatter Rocket Array 28488 | -6/Factory | Found Scatter Rocket Array 28595 | -6/Factory | Build established: Scavenger-Mutant 28876 | -6/Factory | Entered Lower Caves 29043 | -6/Lower Caves | Encountered a Warlord checkpoint 29082 | -6/Lower Caves | Identified exit to Lower Caves 29169 | -6/Lower Caves | Attracted the attention of an 0b10 base 29222 | -6/Lower Caves | Lost 5 parts (2u3w) 29351 | -6/Lower Caves | Build established: Mutant 29380 | -6/Lower Caves | Learned Armory garrison access intel 29380 | -6/Lower Caves | Learned Extension garrison access intel 29380 | -6/Lower Caves | Learned Research terminal intel 29926 | -6/Lower Caves | Build established: Scavenger-Skirmisher 30332 | -6/Lower Caves | Build established: Hauler-Skirmisher 32815 | -6/Lower Caves | Ambushed by wild Derelicts 32816 | -6/Lower Caves | Entered another Lower Caves area 32831 | -6/Lower Caves | Core integrity fell below 20% 33010 | -6/Lower Caves | Discovered exit to Factory (range 16) 33312 | -6/Lower Caves | Learned Factory terminal intel 33934 | -6/Lower Caves | Discovered new exit (range 13) 33987 | -6/Lower Caves | Identified exit to Zion 34021 | -6/Lower Caves | Encountered a Warlord checkpoint 34891 | -6/Lower Caves | Entered Zion 34946 | -6/Zion | System corruption reached 10% 35027 | -6/Zion | System corruption cleaned by Quarantine Array 35165 | -6/Zion | Discovered new exit (range 12) 35232 | -6/Zion | Build established: Hauler-Assassin 35259 | -6/Zion | Received a hallucinogenic algorithm 35674 | -6/Zion | Found Unknown Piercing Weapon 35678 | -6/Zion | Identified CR-A16's Pointy Stick 35702 | -6/Zion | Learned Factory repair station intel 36060 | -6/Zion | Rebuked by Imprinter 36470 | -6/Zion | Found Prototype Special Weapon 36470 | -6/Zion | Identified RU-N14's Throwing Claymores 37025 | -6/Zion | Found RU-N14's Throwing Claymores 37029 | -6/Zion | Found RU-N14's Throwing Claymores 37033 | -6/Zion | Found RU-N14's Throwing Claymores 37723 | -6/Zion | Build established: Hauler-Skirmisher 37839 | -6/Zion | Identified exit to Proximity Caves 38145 | -6/Zion | Build established: Hauler-Mutant 38525 | -6/Zion | Entered Proximity Caves 38835 | -5/Proximity Caves | Build established: Hauler-Skirmisher 38941 | -5/Proximity Caves | Learned Factory security intel 39721 | -5/Proximity Caves | Learned Factory terminal intel 40519 | -5/Proximity Caves | Discovered exit to Factory (range 12) 41131 | -5/Proximity Caves | Entered Factory 41131 | -5/Factory | Evolved 2 slots: Power x1, Utility x1 41132 | -5/Factory | Identified exit to Upper Caves 41134 | -5/Factory | Loaded intel: 26 terminal locations 41135 | -5/Factory | Loaded intel: 6 repair station locations 41545 | -5/Factory | Build established: Derelict-Skirmisher 41875 | -5/Factory | Fabricated Launcher Loader (x2) 41980 | -5/Factory | Repaired Imp. Medium Treads 42048 | -5/Factory | Repaired Broken Med. Treads? 42147 | -5/Factory | Garrison activated, responded to threat 42664 | -5/Factory | Repaired Smartbomb Launcher? 42802 | -5/Factory | Build established: Hauler-Skirmisher 42872 | -5/Factory | Repaired Imp. Medium Treads 42899 | -5/Factory | Repaired Humpback 42952 | -5/Factory | Learned Factory repair station intel 43055 | -5/Factory | Learned Extension stockpile data 43084 | -5/Factory | Discovered new exit (range 12) 43090 | -5/Factory | Learned Armory repair station intel 43114 | -5/Factory | Learned Extension security intel 43129 | -5/Factory | Learned Armory trap positions 43155 | -5/Factory | Learned Armory security intel 43192 | -5/Factory | Learned location of Upper Caves (-4) 43238 | -5/Factory | Identified exit to Factory 43295 | -5/Factory | Learned Quarantine security intel 43308 | -5/Factory | Cargo convoy interrupted 43487 | -5/Factory | Fabricated Hvy. Treads (x1) 43489 | -5/Factory | Garrison activated, responded to threat 43493 | -5/Factory | Fabricated Huge Storage Unit (x1) 43781 | -5/Factory | Found Prototype Device 43830 | -5/Factory | Entered Upper Caves 43831 | -5/Upper Caves | Identified exit to Upper Caves 43837 | -5/Upper Caves | Identified Active Sensor Suite 45877 | -5/Upper Caves | A Derelict revealed a hidden shortcut to "reach the base" 46390 | -5/Upper Caves | Identified exit to Warlord 46464 | -5/Upper Caves | Entered another Upper Caves area 46464 | -5/Upper Caves | Discovered exit to Factory (range 6) 46626 | -5/Upper Caves | Attracted the attention of an 0b10 checkpoint 47451 | -5/Upper Caves | Learned Factory security intel 48742 | -5/Upper Caves | Discovered exit to Warlord (range 9) 48927 | -5/Upper Caves | Found Alien Artifact 49100 | -5/Upper Caves | Entered Warlord 49177 | -5/Warlord | System corruption cleaned by Quarantine Array 49380 | -5/Warlord | Build established: Hauler-Mutant 49741 | -5/Warlord | Build established: Hauler-Skirmisher 49961 | -5/Warlord | Visited the Vortex Lab 49961 | -5/Warlord | Warlord's base attacked by MAIN.C 49979 | -5/Warlord | Found Prototype Piercing Weapon 49979 | -5/Warlord | Identified Vortex Lance 49984 | -5/Warlord | Found Vortex Lance 49992 | -5/Warlord | Found Prototype Energy Gun 49993 | -5/Warlord | Identified Vortex Rail 49998 | -5/Warlord | Found Vortex Rail 50141 | -5/Warlord | Learned Armory stockpile data 50141 | -5/Warlord | Learned Research stockpile data 50143 | -5/Warlord | Learned 4 Armory zone layouts 50143 | -5/Warlord | Learned 4 Testing zone layouts 50145 | -5/Warlord | Learned Armory repair station intel 50145 | -5/Warlord | Learned Research scanalyzer intel 50213 | -5/Warlord | Met Warlord 50241 | -5/Warlord | Opened Warlord's prototype stash 50251 | -5/Warlord | Found Prototype Reactor 50253 | -5/Warlord | Identified Vortex Chain Reactor 50269 | -5/Warlord | Found Prototype Processor 50292 | -5/Warlord | Identified Exp. Target Analyzer 50311 | -5/Warlord | Warlord forces counterattacked 50513 | -5/Warlord | Destroyed B-86 Titan 50514 | -5/Warlord | Destroyed B-75 Beast 50586 | -5/Warlord | Destroyed Striker 50636 | -5/Warlord | Warlord base infiltrated, sounded retreat 50660 | -5/Warlord | Destroyed 7 combat bots 50679 | -5/Warlord | Spotted Striker 50714 | -5/Warlord | Discovered new exit (range 14) 50778 | -5/Warlord | Spotted Striker 50778 | -5/Warlord | Spotted Executioner 50782 | -5/Warlord | Destroyed Executioner 50803 | -5/Warlord | Destroyed 15 combat bots 50839 | -5/Warlord | Destroyed Executioner 50885 | -5/Warlord | Destroyed B-75 Beast 50885 | -5/Warlord | Spotted Executioner 50886 | -5/Warlord | Destroyed B-86 Titan 50887 | -5/Warlord | Destroyed Executioner 50914 | -5/Warlord | Lost 4 parts (1p1n2u) 50922 | -5/Warlord | Destroyed 15 combat bots 51009 | -5/Warlord | Spotted Striker 51009 | -5/Warlord | Spotted Executioner 51014 | -5/Warlord | Destroyed Striker 51033 | -5/Warlord | Destroyed Executioner 51035 | -5/Warlord | System corruption reached 10% 51052 | -5/Warlord | Destroyed Executioner 51078 | -5/Warlord | Destroyed 29 combat bots 51112 | -5/Warlord | Destroyed Executioner 51141 | -5/Warlord | Spotted Striker 51143 | -5/Warlord | Destroyed Striker 51165 | -5/Warlord | Destroyed 12 combat bots 51166 | -5/Warlord | Build established: Scavenger-Mutant 51233 | -5/Warlord | Spotted Striker 51239 | -5/Warlord | Destroyed Striker 51242 | -5/Warlord | Spotted Striker 51242 | -5/Warlord | Spotted Striker 51245 | -5/Warlord | Destroyed Striker 51247 | -5/Warlord | Spotted Executioner 51248 | -5/Warlord | Destroyed Executioner 51250 | -5/Warlord | Destroyed Striker 51300 | -5/Warlord | Destroyed 29 combat bots 51300 | -5/Warlord | Spotted Executioner 51309 | -5/Warlord | Destroyed Executioner 51345 | -5/Warlord | Destroyed Striker 51360 | -5/Warlord | Spotted B-86 Titan 51363 | -5/Warlord | Spotted B-75 Beast 51364 | -5/Warlord | Destroyed B-86 Titan 51365 | -5/Warlord | Spotted Executioner 51367 | -5/Warlord | Destroyed B-75 Beast 51369 | -5/Warlord | Destroyed Executioner 51390 | -5/Warlord | Destroyed 11 combat bots 51393 | -5/Warlord | Core integrity fell below 50% 51442 | -5/Warlord | Spotted Executioner 51449 | -5/Warlord | Destroyed Executioner 51451 | -5/Warlord | Spotted Striker 51462 | -5/Warlord | Spotted Striker 51465 | -5/Warlord | Spotted Executioner 51473 | -5/Warlord | Destroyed Striker 51476 | -5/Warlord | Destroyed Striker 51496 | -5/Warlord | Core integrity fell below 20% 51501 | -5/Warlord | Destroyed Executioner 51523 | -5/Warlord | Lost 12 parts (1p1n8u2w) 51533 | -5/Warlord | Destroyed 34 combat bots 51542 | -5/Warlord | Spotted Executioner 51555 | -5/Warlord | Destroyed by Executioner with Helical Railgun Last Messages --------------- 51515_ Penetrated by Slug. 51516_ Acquired YI-UF0's Bottomless Matter Pit. 51519_ Slug penetrates Earth. 51523_ Critical hit (Destroy). 51523_ Hvy. Treads destroyed. 51526_ Penetrated by Slug. 51527_ System corrupted: Matter fused (-5). 51528_ Archangel 6a destroyed. 51532_ Penetrated by Slug. 51536_ Critical hit (Smash). 51536_ Arm. Medium Treads destroyed. 51536_ System corrupted by crushing effect (+4). 51537_ The unstable cave ceiling collapses. 51537_ Energy Well crushed. 51543_ System corrupted: Component data lost. 51545_ Penetrated by Slug. 51550_ G-50 Soldier destroyed. 51552_ B-60 Warrior destroyed. 51552_ G-50 Soldier destroyed. 51555_ Penetrated by Slug. Map ----- +----------------------------------------------------+ | ?????????????????????????????????????????????????? | | ?????????????????????????????????????????????????? | | ?????????????????????????????????????????????????? | | ?????????????????????????????????????????????????? | | ?????????????????????????????????????????????????? | | ?????????????????????????????????????????????????? | | ?????????????????????????????????????????????????? | | ?????????????????????????????????????????????????? | | ?????????????????????????????????????????????????? | | ?????????????????????????????????????????????????? | | ?????????????????????????????????????????????????? | | ?????????????????????????????????????????????????? | | ?????????????#################???????????????????? | | ?????????????# = = #" """""""#???????????????????? | | ?????????????#=!= ]#" " "#????????????#######? | | ?????????????# =!#" "#????????????# #? | | ##???????????#! ! #" "#????????????# #? | | "#???????????# #" "#????????????# #? | | "###########?# ! #" "#????????????? ?? | | "## #?## ##" #????????????? ?? | | "## #?#X] #" #?????????????# #?? | | "## """" #?#]]!! "#???? ??###??# #?? | | ### """" #?# %] ! % "#???? ??# #?? | | ### """" #?# ]] %%% #??? """?# #?? | | + """" #?# % "#??? """?# #?? | | ### #?########## @####?# """ # #?# | | ??# #????????# #??# # ## | | ??# #?##???### %b #### + # # | | #?#####+######"#### ## # # "#? | | ##### # # ## ### | | # ## | | = =%= | | % %= # # % | | ## ## gg ! ! | | ##### ### ### * E < = % | | #??# #?####; ^ ] ! !] = | | #??## #????##^ = | | #???# ## ; ] | | #???# ####### %/ | | #???# #??# " %%! | | #???# # # %% [ #" ### | | #???# ######"" ###[ #?? | | ##??# ## % [ # % #?? | | #### #" /=* =# "#? | | ## /[ # # # # | | + %[[[##### """ ## | | ##### ### [ [ =%!#???## """"" #?# | | ##???# #?# [ #????# " "" " #?? | | #???## #?###############????# #?? | | #???#X ###########??????????# #?? | +----------------------------------------------------+ Best States ------------- Heat Dissipation 151 Coolant Potential 80 Energy Generation 55 Energy Capacity 700 Matter Stores 300 Matter Capacity 400 Sight Range 22 Robot Scan Range 20 Terrain Scan Range 16 Terrain Scan Density 210 Jamming Range 14 EM Shielding 2 Armor Coverage 1500 Resistance: KI 25 Resistance: TH 15 Resistance: EX 25 Resistance: EM 25 Propulsion Shielding 66 Utility Shielding 66 Weapon Shielding 66 Weapon Cycling 20 Evasion (%) 55 Targeting Accuracy 6 Core Analysis 9 Recoil Reduction 4 Offensive Hacking 11 Defensive Hacking 36 Authchip Count 1 Trap Extractor Capacity 6 Item Schematics ----------------- Huge Storage Unit | -10/Mines | Hacked Humpback | -8/Materials | Scanalyzed Imp. Utility Shielding | -7/Factory | Scanalyzed Combat Drone Bay | -7/Data Miner | Free Lgt. Regenerative Plating | -7/Data Miner | Free Biomechanical Wings | -7/Data Miner | Free Exp. Power Shielding | -7/Data Miner | Free Scatter Rocket Array | -7/Data Miner | Free Hvy. Treads | -7/Data Miner | Free Point Defense System | -7/Data Miner | Free Smartbomb Launcher | -7/Data Miner | Free Hvy. Plasma Cannon | -7/Data Miner | Free Adv. Hacking Suite | -7/Data Miner | Free Neutrino Core | -7/Data Miner | Free Adv. Reaction Control System | -7/Data Miner | Free Imp. System Guard | -7/Data Miner | Free Launcher Loader | -6/Factory | Hacked Imp. Actuator Array | -6/Zion | Archive Recoil Nullifier | -6/Zion | Archive Hvy. Flak Cannon | -6/Zion | Archive Imp. Coolant Injector | -6/Zion | Archive Arm. Medium Treads | -6/Zion | Archive Imp. Target Analyzer | -6/Zion | Archive Adv. Thermal Shield | -6/Zion | Archive Adv. Signal Interpreter | -6/Zion | Archive Imp. Weapon Cycler | -6/Zion | Archive Drone Bay | -6/Zion | Archive Imp. Recalibrator | -6/Zion | Archive Hyp. Gauss Rifle | -6/Zion | Archive Myomer Leg | -6/Zion | Archive Flexi-carbon Leg | -6/Zion | Archive Adv. Shield Generator | -6/Zion | Archive Tiamat Missile Launcher | -6/Zion | Archive Robot Schematics ------------------ C-17 Slicer | -7/Data Miner | Free M-14 Sweeper | -7/Data Miner | Free G-50 Soldier | -7/Data Miner | Free S-27 Virus | -7/Data Miner | Free X-62 Marksman | -7/Data Miner | Free G-47 Trooper | -6/Zion | Archive T-07 Excavator | -6/Zion | Archive R-06 Scavenger | -6/Zion | Archive Fabricated ------------ Launcher Loader | x2 | -5/Factory Hvy. Treads | x1 | -5/Factory Huge Storage Unit | x1 | -5/Factory Alien Tech Used ----------------- None Achievements -------------- None Challenges ------------ None Game ------ Seed MetaThunderRouter Manual? 0 Play Time 07:32:30 Cumulative 517.3 hours Start 2024.09.05 @ 00:09:17 End 2024.09.05 @ 22:42:19 Sessions 5 Manual Loads 0 Difficulty Rogue Special Mode None Game No. 119 Rogue 119 Adventurer 0 Explorer 0 Win Type - Total 30 Types 10/3/7/1/1/1/5/1/1 Lore% 59 Gallery% 83 Achievement% 76 Wizard Run 0 Options --------- Layout 1 ASCII 0 Keyboard 0 Movement Mouse Keybinds 0 Fullscreen 1 Font 24/Smallcaps Map View 50x35 Zoom Use 1% Tactical HUD 1 Map Filters NONE Filters NONE Steam 1 RUN: 6a6e3e12-986a-47be-a132-f272b0a11fed